[Event "Late-Titled-Tuesday-Blitz-March-12-2024"]
[Site "Chess.com"]
[Date "2024.03.12"]
[Round "3"]
[White "Durarbayli"]
[Black "ArtemDyachuk"]
[Result "1-0"]
[WhiteElo "2998"]
[BlackElo "2696"]
[TimeControl "180+1"]
[EndTime "14:28:12 PDT"]
[Termination "Durarbayli won on time"]

1. c4 {[%clk 0:02:59.7]} 1... Nf6 {[%clk 0:02:57.4]} 2. Nc3 {[%clk 0:02:59.3]}
2... g6 {[%clk 0:02:57.7]} 3. g3 {[%clk 0:02:59.3]} 3... Bg7 {[%clk 0:02:58.1]}
4. Bg2 {[%clk 0:03:00]} 4... O-O {[%clk 0:02:55.1]} 5. d4 {[%clk 0:03:00.6]}
5... d6 {[%clk 0:02:53.1]} 6. Nf3 {[%clk 0:03:01.2]} 6... Nc6 {[%clk 0:02:53.3]}
7. b3 {[%clk 0:02:57.5]} 7... Bf5 {[%clk 0:02:46.5]} 8. Bb2 {[%clk 0:02:52.5]}
8... Ne4 {[%clk 0:02:43.8]} 9. Nd5 {[%clk 0:02:52.2]} 9... Nf6 {[%clk
0:02:16.6]} 10. Ne3 {[%clk 0:02:50.9]} 10... Be4 {[%clk 0:02:15.7]} 11. O-O
{[%clk 0:02:50.7]} 11... d5 {[%clk 0:02:11.3]} 12. Rc1 {[%clk 0:02:34.7]} 12...
e6 {[%clk 0:02:05.6]} 13. Bh3 {[%clk 0:02:26.1]} 13... dxc4 {[%clk 0:01:49.8]}
14. Rxc4 {[%clk 0:02:23.6]} 14... Bxf3 {[%clk 0:01:45.6]} 15. exf3 {[%clk
0:02:23.2]} 15... Ne7 {[%clk 0:01:46.5]} 16. f4 {[%clk 0:02:09.4]} 16... c6
{[%clk 0:01:44.6]} 17. Re1 {[%clk 0:02:07.8]} 17... Re8 {[%clk 0:01:44.2]} 18.
Bg2 {[%clk 0:02:07]} 18... Nf5 {[%clk 0:01:35.6]} 19. Rc2 {[%clk 0:02:05.1]}
19... Nd5 {[%clk 0:01:30.5]} 20. Rd2 {[%clk 0:01:59.6]} 20... Qb6 {[%clk
0:01:12]} 21. Nc4 {[%clk 0:01:59.3]} 21... Qa6 {[%clk 0:01:12.1]} 22. Bf1 {[%clk
0:01:54.1]} 22... Red8 {[%clk 0:00:55.3]} 23. a4 {[%clk 0:01:48.8]} 23... b5
{[%clk 0:00:53.3]} 24. Ne5 {[%clk 0:01:48.5]} 24... Qb7 {[%clk 0:00:53.3]} 25.
axb5 {[%clk 0:01:41.8]} 25... cxb5 {[%clk 0:00:54.2]} 26. Bg2 {[%clk 0:01:42.3]}
26... a5 {[%clk 0:00:51]} 27. h4 {[%clk 0:01:23.7]} 27... h5 {[%clk 0:00:42.9]}
28. Be4 {[%clk 0:01:04.7]} 28... a4 {[%clk 0:00:39.9]} 29. bxa4 {[%clk
0:01:01.8]} 29... bxa4 {[%clk 0:00:40.8]} 30. g4 {[%clk 0:01:02.4]} 30... hxg4
{[%clk 0:00:33.7]} 31. Qxg4 {[%clk 0:01:03.3]} 31... a3 {[%clk 0:00:32.4]} 32.
Ba1 {[%clk 0:01:02.8]} 32... Qb4 {[%clk 0:00:28.8]} 33. Qd1 {[%clk 0:00:49.3]}
33... Bh6 {[%clk 0:00:19.5]} 34. Nc6 {[%clk 0:00:41.3]} 34... Qd6 {[%clk
0:00:16.7]} 35. Nxd8 {[%clk 0:00:41.6]} 35... Rxd8 {[%clk 0:00:17]} 36. Bxd5
{[%clk 0:00:35.9]} 36... Qxd5 {[%clk 0:00:17.9]} 37. Qg4 {[%clk 0:00:34.4]}
37... Qd6 {[%clk 0:00:14.1]} 38. d5 {[%clk 0:00:33.5]} 38... Qxf4 {[%clk
0:00:09.3]} 39. Qxf4 {[%clk 0:00:27.1]} 39... Bxf4 {[%clk 0:00:10.2]} 40. Rd3
{[%clk 0:00:27.8]} 40... exd5 {[%clk 0:00:09.8]} 41. h5 {[%clk 0:00:27.3]} 41...
d4 {[%clk 0:00:06.3]} 42. hxg6 {[%clk 0:00:27.4]} 42... fxg6 {[%clk 0:00:07.2]}
43. Rxa3 {[%clk 0:00:19.4]} 43... d3 {[%clk 0:00:07.1]} 44. Rd1 {[%clk
0:00:20.1]} 44... d2 {[%clk 0:00:07.4]} 45. Bc3 {[%clk 0:00:16]} 45... Rd3
{[%clk 0:00:06]} 46. Bb4 {[%clk 0:00:11.6]} 46... Rd4 {[%clk 0:00:04.1]} 47. Bc3
{[%clk 0:00:10.4]} 47... Rd3 {[%clk 0:00:04.2]} 48. Kf1 {[%clk 0:00:10.9]} 48...
Rh3 {[%clk 0:00:02.1]} 49. Kg2 {[%clk 0:00:07.8]} 49... Rd3 {[%clk 0:00:01.6]}
50. Bb4 {[%clk 0:00:08.5]} 50... Rd4 {[%clk 0:00:01.5]} 51. Ba5 {[%clk
0:00:08.6]} 51... Rd5 {[%clk 0:00:01.6]} 52. Bb4 {[%clk 0:00:07.4]} 52... Rd4
{[%clk 0:00:01.5]} 53. Rb3 {[%clk 0:00:07.4]} 53... g5 {[%clk 0:00:01.5]} 54.
Kf1 {[%clk 0:00:07.4]} 54... Nh4 {[%clk 0:00:01.8]} 55. Ke2 {[%clk 0:00:04.8]}
55... Re4+ {[%clk 0:00:02.2]} 56. Kf1 {[%clk 0:00:05.2]} 56... Rd4 {[%clk
0:00:02.3]} 57. Ba5 {[%clk 0:00:05.1]} 57... Rd5 {[%clk 0:00:02.3]} 58. Bb6
{[%clk 0:00:05.2]} 58... Kf7 {[%clk 0:00:01.6]} 59. Be3 {[%clk 0:00:05.8]} 59...
Bxe3 {[%clk 0:00:01.7]} 60. Rxe3 {[%clk 0:00:06.7]} 1-0

[Event "Late-Titled-Tuesday-Blitz-March-12-2024"]
[Site "Chess.com"]
[Date "2024.03.12"]
[Round "3"]
[White "RebelJohnny"]
[Black "Moultino06"]
[Result "0-1"]
[WhiteElo "2545"]
[BlackElo "2821"]
[TimeControl "180+1"]
[EndTime "14:28:14 PDT"]
[Termination "Moultino06 won by resignation"]

1. e4 {[%clk 0:03:00.9]} 1... Nf6 {[%clk 0:02:57]} 2. Nc3 {[%clk 0:02:59.2]}
2... d5 {[%clk 0:02:53.8]} 3. e5 {[%clk 0:02:59.6]} 3... Nfd7 {[%clk 0:02:53.9]}
4. e6 {[%clk 0:02:59.1]} 4... fxe6 {[%clk 0:02:53.4]} 5. d4 {[%clk 0:02:58.9]}
5... c5 {[%clk 0:02:52.6]} 6. Nf3 {[%clk 0:02:43.1]} 6... Nc6 {[%clk 0:02:51.5]}
7. Bb5 {[%clk 0:02:43.5]} 7... g6 {[%clk 0:02:45.9]} 8. dxc5 {[%clk 0:02:43.4]}
8... Bg7 {[%clk 0:02:43]} 9. Be3 {[%clk 0:02:43]} 9... O-O {[%clk 0:02:39.4]}
10. O-O {[%clk 0:02:40.1]} 10... Nde5 {[%clk 0:02:08.2]} 11. Nxe5 {[%clk
0:02:29.2]} 11... Nxe5 {[%clk 0:02:09.1]} 12. Bd4 {[%clk 0:02:23.4]} 12... Bd7
{[%clk 0:01:47.6]} 13. Re1 {[%clk 0:02:17.4]} 13... Nc6 {[%clk 0:01:38.4]} 14.
Bxc6 {[%clk 0:02:14.1]} 14... bxc6 {[%clk 0:01:36.4]} 15. Bxg7 {[%clk
0:02:12.5]} 15... Kxg7 {[%clk 0:01:37.3]} 16. Qd4+ {[%clk 0:02:10.2]} 16... Rf6
{[%clk 0:01:37.4]} 17. Rad1 {[%clk 0:02:08.5]} 17... Qb8 {[%clk 0:01:30.2]} 18.
b3 {[%clk 0:02:04]} 18... Qf4 {[%clk 0:01:28.3]} 19. g3 {[%clk 0:01:49.9]} 19...
Qf5 {[%clk 0:01:20.7]} 20. Rd2 {[%clk 0:01:37.2]} 20... Rf8 {[%clk 0:01:18.8]}
21. f4 {[%clk 0:01:37.5]} 21... Kg8 {[%clk 0:01:01.2]} 22. Re5 {[%clk
0:01:36.9]} 22... Qg4 {[%clk 0:01:00.2]} 23. Rf2 {[%clk 0:01:24.5]} 23... h6
{[%clk 0:00:50.5]} 24. Nd1 {[%clk 0:01:12.4]} 24... Rxf4 {[%clk 0:00:36.3]} 25.
Rxf4 {[%clk 0:01:12.8]} 25... Rxf4 {[%clk 0:00:36.9]} 26. Qxf4 {[%clk
0:01:08.6]} 26... Qxd1+ {[%clk 0:00:37.2]} 27. Kg2 {[%clk 0:01:01.5]} 27...
Qxc2+ {[%clk 0:00:36.6]} 28. Qf2 {[%clk 0:01:01.9]} 28... Qc3 {[%clk 0:00:34.2]}
29. Qe3 {[%clk 0:00:40.1]} 29... Qb2+ {[%clk 0:00:31.6]} 30. Qe2 {[%clk
0:00:31.7]} 30... Qb1 {[%clk 0:00:22.4]} 31. Qd2 {[%clk 0:00:16.5]} 31... Kg7
{[%clk 0:00:17.7]} 32. Re1 {[%clk 0:00:16.1]} 32... Qf5 {[%clk 0:00:16.1]} 33.
Qd4+ {[%clk 0:00:11]} 33... Qf6 {[%clk 0:00:14.7]} 34. Qe5 {[%clk 0:00:09.5]}
34... Qxe5 {[%clk 0:00:13.8]} 35. Rxe5 {[%clk 0:00:09.4]} 35... Kf6 {[%clk
0:00:14.7]} 36. Re1 {[%clk 0:00:07.8]} 36... e5 {[%clk 0:00:13.8]} 37. Kf3
{[%clk 0:00:07.7]} 37... d4 {[%clk 0:00:13.9]} 38. g4 {[%clk 0:00:06.4]} 38...
h5 {[%clk 0:00:09.8]} 39. gxh5 {[%clk 0:00:06.3]} 39... gxh5 {[%clk 0:00:09.2]}
40. h4 {[%clk 0:00:05.3]} 40... Bg4+ {[%clk 0:00:08.8]} 41. Ke4 {[%clk
0:00:04.9]} 41... Bf5+ {[%clk 0:00:08.8]} 42. Kf3 {[%clk 0:00:05.6]} 42... e4+
{[%clk 0:00:06.6]} 43. Kf4 {[%clk 0:00:04.8]} 43... e5+ {[%clk 0:00:06.7]} 44.
Kg3 {[%clk 0:00:04.7]} 44... e3 {[%clk 0:00:07.3]} 45. b4 {[%clk 0:00:03.6]}
45... Bg4 {[%clk 0:00:05.8]} 46. a4 {[%clk 0:00:02.4]} 46... d3 {[%clk
0:00:05.6]} 47. Rxe3 {[%clk 0:00:02.3]} 47... d2 {[%clk 0:00:06.5]} 48. Rd3
{[%clk 0:00:02.5]} 48... d1=Q {[%clk 0:00:06.7]} 49. Rxd1 {[%clk 0:00:03.4]}
49... Bxd1 {[%clk 0:00:07.5]} 50. b5 {[%clk 0:00:04]} 50... Bg4 {[%clk
0:00:06.1]} 51. b6 {[%clk 0:00:03.5]} 51... axb6 {[%clk 0:00:06.5]} 52. cxb6
{[%clk 0:00:04.4]} 52... Bc8 {[%clk 0:00:07]} 53. Kf3 {[%clk 0:00:05.3]} 53...
Kf5 {[%clk 0:00:07]} 54. Ke3 {[%clk 0:00:05.7]} 54... c5 {[%clk 0:00:07]} 55.
Kd3 {[%clk 0:00:05.4]} 55... Ba6+ {[%clk 0:00:07.1]} 56. Kc3 {[%clk 0:00:06]}
56... e4 {[%clk 0:00:07.4]} 57. Kd2 {[%clk 0:00:06]} 57... Kf4 {[%clk
0:00:07.5]} 0-1

[Event "Late-Titled-Tuesday-Blitz-March-12-2024"]
[Site "Chess.com"]
[Date "2024.03.12"]
[Round "3"]
[White "Yeritsyaan"]
[Black "ccccvhhhj"]
[Result "1/2-1/2"]
[WhiteElo "2643"]
[BlackElo "2462"]
[TimeControl "180+1"]
[EndTime "14:28:15 PDT"]
[Termination "Game drawn - insufficient material"]

1. b3 {[%clk 0:03:00.9]} 1... e5 {[%clk 0:02:55.4]} 2. Bb2 {[%clk 0:03:00.6]}
2... Nc6 {[%clk 0:02:56.2]} 3. e3 {[%clk 0:03:00.8]} 3... d5 {[%clk 0:02:56.9]}
4. Bb5 {[%clk 0:03:00.4]} 4... Bd6 {[%clk 0:02:57.5]} 5. Nf3 {[%clk 0:02:57.6]}
5... Qe7 {[%clk 0:02:50.6]} 6. d4 {[%clk 0:02:53.6]} 6... e4 {[%clk 0:02:48.4]}
7. Ne5 {[%clk 0:02:53.4]} 7... Bd7 {[%clk 0:02:45.8]} 8. Nxd7 {[%clk 0:02:52.9]}
8... Qxd7 {[%clk 0:02:44.1]} 9. c4 {[%clk 0:02:53.5]} 9... Nf6 {[%clk
0:02:39.3]} 10. Nc3 {[%clk 0:02:53.6]} 10... Bb4 {[%clk 0:02:29]} 11. O-O {[%clk
0:02:50.1]} 11... Bxc3 {[%clk 0:02:28.4]} 12. Bxc3 {[%clk 0:02:50.1]} 12... O-O
{[%clk 0:02:28.6]} 13. Rc1 {[%clk 0:02:46.3]} 13... a6 {[%clk 0:02:27]} 14. Bxc6
{[%clk 0:02:39]} 14... Qxc6 {[%clk 0:02:19.8]} 15. Bb4 {[%clk 0:02:38.6]} 15...
Rfe8 {[%clk 0:02:18.8]} 16. cxd5 {[%clk 0:02:37.9]} 16... Qd7 {[%clk 0:02:13.6]}
17. d6 {[%clk 0:02:36.9]} 17... cxd6 {[%clk 0:02:14.5]} 18. d5 {[%clk
0:02:28.8]} 18... Re5 {[%clk 0:02:12.6]} 19. Bc3 {[%clk 0:02:20.7]} 19... Rxd5
{[%clk 0:02:08.2]} 20. Qc2 {[%clk 0:02:20.1]} 20... Rd3 {[%clk 0:01:56.6]} 21.
Bxf6 {[%clk 0:02:19.1]} 21... gxf6 {[%clk 0:01:57.5]} 22. Qc7 {[%clk 0:02:16.9]}
22... Rd8 {[%clk 0:01:54.9]} 23. Qxd7 {[%clk 0:02:16]} 23... Rxd7 {[%clk
0:01:55.2]} 24. Rc2 {[%clk 0:02:15.4]} 24... Kf8 {[%clk 0:01:48.7]} 25. Rfc1
{[%clk 0:02:15.5]} 25... Ke7 {[%clk 0:01:48.7]} 26. Kf1 {[%clk 0:02:15.1]} 26...
Rd5 {[%clk 0:01:40.9]} 27. Ke2 {[%clk 0:02:12.6]} 27... Rh5 {[%clk 0:01:31.5]}
28. h3 {[%clk 0:02:11.6]} 28... Rg5 {[%clk 0:01:32.1]} 29. g3 {[%clk 0:02:11.2]}
29... Ra5 {[%clk 0:01:26.1]} 30. Rd1 {[%clk 0:02:04.6]} 30... f5 {[%clk
0:01:20.3]} 31. Rdd2 {[%clk 0:01:56.1]} 31... Rc5 {[%clk 0:01:10.4]} 32. b4
{[%clk 0:01:54.1]} 32... Rxc2 {[%clk 0:01:06.7]} 33. Rxc2 {[%clk 0:01:55]} 33...
Kd8 {[%clk 0:00:56.1]} 34. Rd2 {[%clk 0:01:55.1]} 34... d5 {[%clk 0:00:54.3]}
35. Kd1 {[%clk 0:01:38.4]} 35... Kc7 {[%clk 0:00:47.1]} 36. Kc2 {[%clk
0:01:37.2]} 36... Kd6 {[%clk 0:00:45.1]} 37. Kb3 {[%clk 0:01:35.3]} 37... Rc7
{[%clk 0:00:45.7]} 38. a4 {[%clk 0:01:31.6]} 38... b5 {[%clk 0:00:46.2]} 39.
axb5 {[%clk 0:01:30.9]} 39... axb5 {[%clk 0:00:47.1]} 40. Ra2 {[%clk 0:01:31.3]}
40... Rc1 {[%clk 0:00:39.4]} 41. Ra6+ {[%clk 0:01:31]} 41... Ke5 {[%clk
0:00:39]} 42. Ra2 {[%clk 0:01:19.4]} 42... h5 {[%clk 0:00:34.9]} 43. h4 {[%clk
0:01:19.4]} 43... Rb1+ {[%clk 0:00:33.3]} 44. Kc3 {[%clk 0:01:18.6]} 44... Rf1
{[%clk 0:00:34.2]} 45. Rd2 {[%clk 0:01:11.5]} 45... Rc1+ {[%clk 0:00:33.4]} 46.
Kb2 {[%clk 0:01:10.9]} 46... Rc4 {[%clk 0:00:32.4]} 47. Kb3 {[%clk 0:01:10.8]}
47... d4 {[%clk 0:00:29.9]} 48. exd4+ {[%clk 0:01:08.4]} 48... Rxd4 {[%clk
0:00:30.8]} 49. Ra2 {[%clk 0:01:08.1]} 49... Rd3+ {[%clk 0:00:30.2]} 50. Kc2
{[%clk 0:01:08.3]} 50... Rf3 {[%clk 0:00:31]} 51. Kd1 {[%clk 0:01:08.4]} 51...
Kd4 {[%clk 0:00:29.9]} 52. Ke2 {[%clk 0:01:08.2]} 52... Kc4 {[%clk 0:00:22.9]}
53. Ra7 {[%clk 0:01:08.6]} 53... Kxb4 {[%clk 0:00:22.6]} 54. Rxf7 {[%clk
0:01:09.3]} 54... Ka3 {[%clk 0:00:20.6]} 55. Rh7 {[%clk 0:01:09.9]} 55... b4
{[%clk 0:00:20.9]} 56. Rxh5 {[%clk 0:01:10.6]} 56... b3 {[%clk 0:00:21.8]} 57.
Rh8 {[%clk 0:01:11.1]} 57... b2 {[%clk 0:00:21.8]} 58. Ra8+ {[%clk 0:01:10.7]}
58... Kb3 {[%clk 0:00:22.1]} 59. Rb8+ {[%clk 0:01:08.7]} 59... Ka2 {[%clk
0:00:22.4]} 60. h5 {[%clk 0:01:02.7]} 60... b1=Q {[%clk 0:00:18.3]} 61. Rxb1
{[%clk 0:01:02.7]} 61... Kxb1 {[%clk 0:00:19.2]} 62. h6 {[%clk 0:01:02.9]} 62...
Rc3 {[%clk 0:00:18.6]} 63. h7 {[%clk 0:01:00.3]} 63... Rc8 {[%clk 0:00:18.7]}
64. Ke3 {[%clk 0:01:01]} 64... Rh8 {[%clk 0:00:18.5]} 65. Kf4 {[%clk 0:01:01.5]}
65... Rxh7 {[%clk 0:00:18.6]} 66. Kxf5 {[%clk 0:01:02.2]} 66... Rf7+ {[%clk
0:00:19.1]} 67. Kxe4 {[%clk 0:01:01.6]} 67... Rxf2 {[%clk 0:00:20]} 68. g4
{[%clk 0:01:02.4]} 68... Kc2 {[%clk 0:00:17.7]} 69. g5 {[%clk 0:01:02.9]} 69...
Kc3 {[%clk 0:00:18.2]} 70. g6 {[%clk 0:01:02.1]} 70... Rg2 {[%clk 0:00:17.7]}
71. Kf5 {[%clk 0:01:02.4]} 71... Kd4 {[%clk 0:00:18.6]} 72. Kf6 {[%clk
0:01:02.6]} 72... Rf2+ {[%clk 0:00:17.8]} 73. Ke6 {[%clk 0:01:01.4]} 73... Re2+
{[%clk 0:00:14.2]} 74. Kf6 {[%clk 0:01:00.7]} 74... Rf2+ {[%clk 0:00:09.4]} 75.
Ke6 {[%clk 0:01:00.4]} 75... Rg2 {[%clk 0:00:08.9]} 76. Kf6 {[%clk 0:00:59.8]}
76... Kd5 {[%clk 0:00:08]} 77. g7 {[%clk 0:01:00.1]} 77... Kd6 {[%clk
0:00:06.6]} 78. Kf7 {[%clk 0:01:00.5]} 78... Rf2+ {[%clk 0:00:07.2]} 79. Ke8
{[%clk 0:00:59]} 79... Re2+ {[%clk 0:00:05.2]} 80. Kf7 {[%clk 0:00:58.3]} 80...
Rf2+ {[%clk 0:00:05.7]} 81. Ke8 {[%clk 0:00:58.6]} 81... Rg2 {[%clk 0:00:05.6]}
82. Kf7 {[%clk 0:00:58.8]} 82... Rxg7+ {[%clk 0:00:05.1]} 83. Kxg7 {[%clk
0:00:59]} 1/2-1/2

[Event "Late-Titled-Tuesday-Blitz-March-12-2024"]
[Site "Chess.com"]
[Date "2024.03.12"]
[Round "3"]
[White "jstopa4"]
[Black "Angry_Twin"]
[Result "0-1"]
[WhiteElo "2747"]
[BlackElo "2960"]
[TimeControl "180+1"]
[EndTime "14:28:19 PDT"]
[Termination "Angry_Twin won by resignation"]

1. d4 {[%clk 0:02:59.1]} 1... Nf6 {[%clk 0:03:00]} 2. c4 {[%clk 0:02:57]} 2...
e6 {[%clk 0:03:00.2]} 3. Nf3 {[%clk 0:02:56.8]} 3... d5 {[%clk 0:03:00.8]} 4. g3
{[%clk 0:02:56.7]} 4... Bb4+ {[%clk 0:03:00.6]} 5. Bd2 {[%clk 0:02:56.6]} 5...
Be7 {[%clk 0:03:00.9]} 6. Qc2 {[%clk 0:02:56.5]} 6... O-O {[%clk 0:03:01.4]} 7.
Bg2 {[%clk 0:02:56.7]} 7... Nbd7 {[%clk 0:03:02.1]} 8. O-O {[%clk 0:02:56]} 8...
c6 {[%clk 0:03:02.7]} 9. Bf4 {[%clk 0:02:53.5]} 9... b6 {[%clk 0:03:02.6]} 10.
Rd1 {[%clk 0:02:46.5]} 10... Ba6 {[%clk 0:03:01.8]} 11. Nbd2 {[%clk 0:02:42.9]}
11... Nh5 {[%clk 0:02:50.9]} 12. Be5 {[%clk 0:02:36.1]} 12... Nhf6 {[%clk
0:02:49.1]} 13. Qa4 {[%clk 0:02:30.9]} 13... Bxc4 {[%clk 0:02:46.6]} 14. Nxc4
{[%clk 0:02:20.6]} 14... b5 {[%clk 0:02:43.6]} 15. Qa6 {[%clk 0:02:19.3]} 15...
bxc4 {[%clk 0:02:42]} 16. Qxc6 {[%clk 0:02:19.4]} 16... Qb6 {[%clk 0:02:25.2]}
17. Qxb6 {[%clk 0:02:07.7]} 17... axb6 {[%clk 0:02:26.1]} 18. a3 {[%clk
0:01:57.5]} 18... b5 {[%clk 0:02:25.8]} 19. Ne1 {[%clk 0:01:47.5]} 19... Nb6
{[%clk 0:02:23.9]} 20. Nc2 {[%clk 0:01:39.4]} 20... Na4 {[%clk 0:02:24]} 21.
Rab1 {[%clk 0:01:39.6]} 21... c3 {[%clk 0:02:24]} 22. b4 {[%clk 0:01:36.1]}
22... Nb2 {[%clk 0:02:22.9]} 23. Rdc1 {[%clk 0:01:36.2]} 23... Rfc8 {[%clk
0:02:11.8]} 24. h3 {[%clk 0:01:26.6]} 24... Nd7 {[%clk 0:02:11.2]} 25. Bf4
{[%clk 0:01:26.3]} 25... f5 {[%clk 0:02:07]} 26. h4 {[%clk 0:01:25.8]} 26... Nb6
{[%clk 0:02:06.4]} 27. h5 {[%clk 0:01:20]} 27... N6c4 {[%clk 0:02:04.8]} 28. Ra1
{[%clk 0:01:20.1]} 28... Ra4 {[%clk 0:02:04.5]} 29. g4 {[%clk 0:01:17.7]} 29...
fxg4 {[%clk 0:01:57.6]} 30. e4 {[%clk 0:01:17.7]} 30... Nd3 {[%clk 0:01:57.6]}
31. Be3 {[%clk 0:01:09.8]} 31... Nxe3 {[%clk 0:01:56.4]} 32. fxe3 {[%clk
0:01:08.3]} 32... Nxc1 {[%clk 0:01:52.1]} 33. Rxc1 {[%clk 0:01:08.1]} 33... dxe4
{[%clk 0:01:49]} 34. Bxe4 {[%clk 0:01:08]} 34... Bg5 {[%clk 0:01:42.8]} 35. Kf2
{[%clk 0:01:04.3]} 35... Ra7 {[%clk 0:01:30.8]} 36. Rg1 {[%clk 0:01:00.8]} 36...
Rf8+ {[%clk 0:01:26.9]} 37. Ke2 {[%clk 0:01:01.1]} 37... Raf7 {[%clk 0:01:19.6]}
38. Rxg4 {[%clk 0:01:00]} 38... Rf2+ {[%clk 0:01:18.2]} 39. Kd3 {[%clk
0:01:00.3]} 39... Rc8 {[%clk 0:01:15.9]} 40. Rg2 {[%clk 0:01:00.2]} 40... Rxg2
{[%clk 0:01:01.2]} 41. Bxg2 {[%clk 0:01:00.5]} 41... Kf7 {[%clk 0:00:51]} 42.
Bb7 {[%clk 0:00:57.4]} 42... Rb8 {[%clk 0:00:43.1]} 43. Be4 {[%clk 0:00:56.1]}
43... g6 {[%clk 0:00:41.3]} 44. hxg6+ {[%clk 0:00:55.7]} 44... hxg6 {[%clk
0:00:42.2]} 45. Kxc3 {[%clk 0:00:56.2]} 45... Be7 {[%clk 0:00:41.4]} 46. Ne1
{[%clk 0:00:51.3]} 46... g5 {[%clk 0:00:41.3]} 47. Nf3 {[%clk 0:00:48]} 47...
Bf6 {[%clk 0:00:40.5]} 48. Nh2 {[%clk 0:00:44.8]} 48... Ke7 {[%clk 0:00:37.6]}
49. Ng4 {[%clk 0:00:41.1]} 49... Bg7 {[%clk 0:00:37.4]} 50. Kd3 {[%clk
0:00:37.4]} 50... Kd6 {[%clk 0:00:37.4]} 51. Bf3 {[%clk 0:00:32.6]} 51... Rc8
{[%clk 0:00:32.3]} 52. e4 {[%clk 0:00:32.6]} 52... e5 {[%clk 0:00:30]} 53. dxe5+
{[%clk 0:00:30]} 53... Bxe5 {[%clk 0:00:29.8]} 54. Ne3 {[%clk 0:00:28.3]} 54...
Rc3+ {[%clk 0:00:27.7]} 55. Ke2 {[%clk 0:00:28.3]} 55... Rxa3 {[%clk 0:00:27.6]}
56. Nd5 {[%clk 0:00:28.5]} 56... Bd4 {[%clk 0:00:25.9]} 57. Bh5 {[%clk
0:00:23.6]} 57... Ke5 {[%clk 0:00:25.9]} 58. Nc7 {[%clk 0:00:22.7]} 58... Kxe4
{[%clk 0:00:23]} 59. Bg6+ {[%clk 0:00:22.3]} 59... Ke5 {[%clk 0:00:22.8]} 60.
Nxb5 {[%clk 0:00:22.3]} 60... Re3+ {[%clk 0:00:22.7]} 61. Kf1 {[%clk 0:00:22.8]}
61... Bb6 {[%clk 0:00:21.9]} 62. Kg2 {[%clk 0:00:20.5]} 62... Rb3 {[%clk
0:00:22]} 63. Be8 {[%clk 0:00:19.7]} 63... Rxb4 {[%clk 0:00:21.1]} 64. Kg3
{[%clk 0:00:20.6]} 64... Kf6 {[%clk 0:00:20.4]} 65. Bc6 {[%clk 0:00:20.2]} 65...
Bd4 {[%clk 0:00:18.7]} 66. Kg2 {[%clk 0:00:18.9]} 66... Be5 {[%clk 0:00:19]} 67.
Na7 {[%clk 0:00:16.4]} 67... g4 {[%clk 0:00:18.3]} 68. Bd7 {[%clk 0:00:14.4]}
68... Rb2+ {[%clk 0:00:18.1]} 69. Kg1 {[%clk 0:00:14.3]} 69... Bd4+ {[%clk
0:00:18.2]} 0-1